bitfinex/quotes_ETHUSD_20250126
["timestamp","ask_amount","ask_price","bid_price","bid_amount"]
[1737897319139,0.15511179,3306.8,3306.2,0.10815282]
[1737897319638,3.78741,3306.7,3306.2,0.10815282]
[1737897320139,0.15511179,3306.6,3306.2,0.10815282]
[1737897320639,0.7632,3306.7,3306.3,0.10815282]
[1737897321140,0.15511179,3306.6,3306.3,0.10815282]
[1737897321288,0.15511179,3306.6,3306.4,3.02443]
[1737897321483,0.15502831,3306.5,3306.4,3.33768828]
[1737897321692,3.0,3307.0,3306.4,3.33768828]
[1737897321994,0.15502831,3306.9,3306.5,0.8142]
[1737897322189,0.15502831,3306.9,3306.6,3.02419]
[1737897322503,0.15509928,3306.8,3306.7,3.02415]
[1737897322701,3.7632,3307.4,3306.7,3.02415]
[1737897322903,0.15509928,3307.3,3306.7,3.02415]
[1737897323086,0.15509928,3307.3,3306.6,3.02419]
[1737897323319,0.15509928,3307.3,3306.8,3.02405]
[1737897325512,0.15509928,3307.3,3306.9,0.10815282]
[1737897325707,0.15509928,3307.3,3306.9,0.87595282]
[1737897326757,0.15509928,3307.3,3307.0,0.10815282]
[1737897327848,0.15509928,3307.3,3306.7,3.84078]
[1737897328074,0.15509928,3307.3,3306.7,4.31940296]
[1737897328774,0.15509928,3307.3,3306.8,0.10813455]
[1737897329546,0.15509928,3307.3,3306.9,0.10813455]
[1737897330479,0.15509928,3307.3,3307.0,0.10813455]
[1737897330977,3.02373,3307.2,3307.0,0.10813455]
[1737897331143,0.15527881,3307.1,3307.0,0.10813455]
[1737897332448,3.17906881,3307.1,3307.0,0.10813455]
[1737897332647,3.79934869,3307.1,3307.0,0.10813455]
[1737897333345,3.17906881,3307.1,3307.0,0.10813455]
[1737897337033,0.15527881,3307.1,3307.0,0.10813455]
[1737897337379,3.02371,3307.2,3307.0,0.10813455]
[1737897337567,0.15540401,3307.1,3307.0,0.10813455]
[1737897338282,0.15540401,3307.1,3306.6,3.02424]
[1737897339254,0.7646,3307.0,3306.5,0.8167]
[1737897339440,3.17922401,3307.1,3306.7,0.10814673]
[1737897339640,3.02382,3307.1,3306.7,0.10814673]
[1737897339846,0.15540401,3307.0,3306.7,0.10814673]
[1737897340264,0.7646,3307.2,3306.7,0.10814673]
[1737897340586,0.7646,3307.2,3306.8,0.10814673]
[1737897340737,0.15540401,3307.1,3306.8,0.10814673]
[1737897341784,0.15540401,3307.1,3306.9,0.10814673]
[1737897342775,0.15540401,3307.0,3306.9,0.10814673]
[1737897343008,3.0,3307.3,3306.7,3.02412]
[1737897343144,0.15540401,3307.0,3306.7,3.02412]
[1737897343343,3.0,3307.3,3306.7,3.02412]
[1737897343567,0.15540401,3307.2,3306.7,3.02412]
[1737897343771,0.15540401,3307.2,3306.8,3.02405]
[1737897343976,3.0,3307.3,3306.8,3.13219707]
[1737897344284,0.15540401,3307.2,3306.8,3.13219707]
[1737897344589,3.0,3307.3,3306.8,3.13219707]
[1737897344756,0.15540401,3307.2,3306.8,3.13219707]
[1737897345093,3.0,3307.3,3306.8,3.13219707]
[1737897345556,0.15540401,3307.2,3306.8,3.13219707]
[1737897345755,3.0,3307.3,3306.8,3.13219707]
[1737897345997,0.15540401,3307.2,3306.9,0.10814707]
[1737897346140,3.0,3307.3,3306.9,0.10814707]
[1737897346490,0.15540401,3307.2,3306.9,0.10814707]
[1737897346932,7.011606,3307.3,3307.0,0.10814707]
[1737897347132,0.15540401,3307.1,3307.0,0.10814707]
[1737897347333,7.011606,3307.3,3307.0,0.10814707]
[1737897347549,0.15540401,3307.1,3307.0,0.10814707]
[1737897347709,7.011606,3307.3,3307.0,0.10814707]
[1737897348240,0.15532471,3307.2,3307.0,0.10814707]
[1737897348609,7.011606,3307.3,3307.0,0.10814707]
[1737897348810,0.15532471,3307.1,3307.0,0.10814707]
[1737897348998,6.02362,3307.3,3307.0,0.10814707]
[1737897349333,0.15532471,3307.2,3307.1,0.10814707]
[1737897350038,6.02362,3307.3,3307.1,0.10814707]
[1737897350240,0.15532471,3307.2,3307.1,0.10814707]
[1737897350550,6.02362,3307.3,3307.1,0.10814707]
[1737897350754,0.15532471,3307.2,3307.1,0.10814707]
[1737897351354,6.02362,3307.3,3307.1,0.10814707]
[1737897351559,0.15532471,3307.2,3307.1,0.10814707]
[1737897351857,6.02362,3307.3,3307.1,0.10814707]
[1737897352060,0.15532471,3307.2,3307.1,0.10814707]
[1737897352363,6.02362,3307.3,3307.1,0.10814707]
[1737897352658,0.15532471,3307.2,3307.1,0.10814707]
[1737897353024,6.02362,3307.3,3307.1,0.10814707]
[1737897353227,0.1553748,3307.2,3307.1,0.10814707]
[1737897353763,0.1553748,3307.2,3306.6,3.02424]
[1737897354062,0.1553748,3307.2,3306.7,3.408254]
[1737897354613,0.1553748,3307.2,3306.8,0.10824879]
[1737897354924,6.02362,3307.3,3306.8,0.10824879]
[1737897355261,0.1553748,3307.2,3306.8,0.10824879]
[1737897355565,6.02362,3307.3,3306.8,0.10824879]
[1737897355850,0.1553748,3307.2,3306.9,0.10824879]
[1737897356242,6.02362,3307.3,3306.9,0.10824879]
[1737897356725,0.1553748,3307.2,3306.9,0.10824879]
[1737897356932,6.02362,3307.3,3306.9,0.10824879]
[1737897357133,0.1553748,3307.2,3306.9,0.10824879]
[1737897357333,6.02362,3307.3,3306.9,0.10824879]
[1737897357535,0.1553748,3307.2,3306.9,0.10824879]
[1737897357739,6.02362,3307.3,3307.0,0.10824879]
[1737897358175,0.1553748,3307.2,3307.0,0.10824879]
[1737897358373,6.02362,3307.3,3307.0,0.10824879]
[1737897358527,0.1553581,3307.2,3307.1,0.10824879]
[1737897358727,6.02362,3307.3,3307.1,0.10824879]
[1737897358958,0.1553581,3307.2,3307.1,0.10824879]
[1737897359228,7.011597,3307.3,3307.1,0.10824879]
[1737897359464,0.1553581,3307.2,3307.1,0.10824879]
[1737897359823,10.035297,3307.3,3307.1,0.10824879]
[1737897360029,3.1790581,3307.2,3307.1,0.10824879]
[1737897362143,4.18434234,3307.2,3307.1,0.10824879]
[1737897362491,5.01314234,3307.2,3307.1,0.10824879]
[1737897364443,8.01314234,3307.2,3307.1,0.10824879]
[1737897366490,3.02385,3307.1,3306.4,3.02441]
[1737897366813,0.15528297,3307.0,3306.4,3.02441]
[1737897367019,0.15528297,3307.0,3306.9,0.7959]
[1737897367398,3.0,3307.4,3306.9,0.7959]
[1737897367598,0.15528297,3307.3,3306.9,0.7959]
[1737897369395,3.17890297,3307.3,3306.9,0.7959]
[1737897369629,3.17890297,3307.3,3306.7,0.7648]
[1737897369945,0.7559,3307.2,3306.7,0.7648]
[1737897370114,3.0238,3307.1,3306.5,0.7648]
[1737897370305,3.1791581,3307.1,3306.5,0.7648]
[1737897370645,3.1791581,3307.1,3306.4,3.02441]
[1737897370845,3.02404,3306.9,3306.2,3.78939]
[1737897371050,0.7559,3306.8,3306.2,0.7648]
[1737897371198,3.02421,3306.7,3306.2,0.7648]
[1737897371398,0.15530803,3306.6,3306.2,0.7648]
[1737897374251,0.15530803,3306.6,3306.0,3.78958]
[1737897374628,3.02421,3306.7,3306.0,3.78958]
[1737897375037,0.15530803,3306.6,3306.0,3.78958]
[1737897375730,3.02437,3306.5,3306.0,0.7648]
[1737897375930,0.15504082,3306.4,3306.0,0.7648]
[1737897377051,0.15504082,3306.4,3306.0,3.78955]
[1737897377390,3.02421,3306.7,3306.0,3.78955]
[1737897377594,0.15503249,3306.6,3306.0,3.78955]
[1737897377791,0.15503249,3306.6,3306.1,3.02465]
[1737897381799,0.15503249,3306.6,3306.0,3.78955]
[1737897382996,3.02435,3306.5,3305.8,6.04984]
[1737897383295,0.7681,3306.4,3305.9,3.02485]
[1737897383502,0.92313249,3306.4,3305.9,3.02485]
[1737897384000,0.92313249,3306.4,3306.0,3.02479]
[1737897387102,0.92313249,3306.4,3306.1,3.02469]
[1737897387305,0.92313249,3306.4,3306.0,3.02479]
[1737897390768,0.7681,3306.4,3306.0,3.02479]
[1737897390973,0.15503249,3306.3,3306.0,6.04952]
[1737897391175,0.7681,3306.4,3306.0,6.04952]
[1737897391369,0.15493645,3306.3,3306.0,6.04952]
[1737897391575,0.7681,3306.4,3306.0,6.04952]
[1737897391770,0.15493645,3306.3,3306.0,3.02473]
[1737897392025,0.15493645,3306.3,3306.1,3.02469]
[1737897394647,0.8273,3306.6,3306.1,3.02469]
[1737897394844,0.15493645,3306.2,3306.1,3.02469]
[1737897395009,3.85155,3306.6,3306.0,3.02473]
[1737897395206,0.15493645,3306.5,3306.0,3.02473]
[1737897396751,0.8273,3306.4,3305.8,6.04987]
[1737897396918,0.8273,3306.4,3305.9,3.02483]
[1737897397332,0.15493645,3306.3,3305.9,3.02483]
[1737897400403,0.15493645,3306.3,3305.1,5.27]
[1737897400609,3.77823,3305.9,3305.3,3.0254]
[1737897400788,0.15469007,3305.8,3305.3,3.0254]
[1737897400988,3.17969007,3305.8,3305.1,3.55255]
[1737897401599,3.7533,3305.4,3304.7,3.02595]
[1737897401801,0.15433923,3305.3,3304.7,3.02595]
[1737897402302,0.15433923,3305.3,3304.8,3.02587]
[1737897402904,0.15433923,3305.3,3304.7,0.6060386]
[1737897403089,3.17985923,3305.3,3304.7,3.6319786]
[1737897403316,4.17571715,3305.3,3304.7,3.6319786]
[1737897404783,4.17571715,3305.3,3304.7,3.02594]
[1737897408517,3.02555,3305.2,3304.7,3.02599]
[1737897409018,0.15390469,3305.1,3304.7,3.02599]
[1737897410022,4.02130792,3305.3,3304.7,3.02599]
[1737897410180,1.23389495,3305.2,3304.7,3.02599]
[1737897411094,0.7712,3305.1,3304.7,3.02599]
[1737897411708,0.15389216,3305.0,3304.7,3.02599]
[1737897412105,0.15389216,3305.0,3304.4,3.02626]
[1737897412310,0.15389216,3305.0,3304.5,3.02617]
[1737897412624,0.15389216,3305.0,3304.4,3.02626]
[1737897412625,0.15389216,3305.0,3304.6,3.02606]
[1737897420061,0.15389216,3305.0,3304.7,4.142036]
[1737897420348,0.7871,3305.9,3305.3,3.02538]
[1737897420849,0.14835757,3305.8,3305.1,3.02556]
[1737897421148,0.14835757,3305.8,3305.2,3.02551]
[1737897421303,0.7871,3305.7,3304.9,3.02578]
[1737897421748,0.7871,3305.5,3304.9,3.02578]
[1737897421952,1.468317,3305.5,3304.9,3.02578]
[1737897422333,0.14848713,3305.4,3304.9,3.02578]
[1737897423663,0.7775,3305.2,3304.8,0.198]
[1737897424016,0.14848713,3305.1,3304.8,0.198]
[1737897431178,0.7646,3304.2,3303.4,0.8073]
[1737897431481,3.5539913,3304.1,3303.5,3.02703]
[1737897431776,3.1748883,3304.1,3303.5,3.02703]
[1737897432486,3.02674,3303.9,3303.3,3.02719]
[1737897432854,3.1748883,3304.1,3303.3,3.02719]
[1737897432855,0.14806073,3303.8,3303.3,3.02719]
[1737897433055,3.02656,3304.1,3303.4,3.02716]
[1737897433395,0.14806073,3304.0,3303.4,3.02716]
[1737897433546,0.7646,3303.8,3303.0,8.90194705]
[1737897433747,0.7646,3303.8,3303.2,3.02729]
[1737897434286,0.14806073,3303.7,3303.2,3.02729]
[1737897434643,0.7646,3303.8,3303.2,3.02729]
[1737897434958,0.14806073,3303.7,3303.2,3.02729]
[1737897435346,0.7646,3303.8,3303.2,3.02729]
[1737897435745,0.14806073,3303.7,3303.2,3.02729]
[1737897436044,0.7646,3303.8,3303.2,3.02729]
[1737897436279,0.14783073,3303.7,3303.1,3.02738]
[1737897436688,0.14783073,3303.7,3303.2,3.02736]
[1737897437385,3.02707,3303.6,3302.9,3.02757]
[1737897437586,0.7937,3303.4,3302.9,3.02757]
[1737897438081,0.14783073,3303.3,3302.9,3.02757]
[1737897438587,0.14783073,3303.3,3303.1,3.02743]
[1737897439964,0.14783073,3303.3,3303.2,3.02736]
[1737897440359,0.7937,3303.8,3303.3,3.02725]
[1737897440574,1.46638186,3303.8,3303.3,3.02725]
[1737897441684,4.49320186,3303.8,3303.1,3.78259]
[1737897442195,1.46638186,3303.8,3303.1,3.78259]
[1737897442347,0.7937,3303.8,3303.4,3.02716]
[1737897442552,0.7937,3303.8,3303.6,3.027]
[1737897442957,0.7937,3303.8,3303.3,3.0272]
[1737897443158,0.7937,3303.8,3303.4,3.02712]
[1737897443497,0.7937,3303.8,3303.5,3.02708]
[1737897443905,3.84376,3303.6,3303.0,3.0275]
[1737897444203,4.530829,3303.6,3303.0,3.0275]
[1737897444754,0.8167,3303.6,3303.1,3.02743]
[1737897445392,0.8167,3304.0,3303.4,3.0271]
[1737897445567,0.8167,3304.0,3303.5,3.02707]
[1737897445768,3.0,3304.2,3303.6,3.02693]
[1737897446102,0.8167,3304.3,3303.9,3.02666]
[1737897446451,0.8167,3304.3,3303.7,3.02683]
[1737897446859,3.84311,3304.3,3303.6,3.02696]
[1737897447109,3.0,3304.2,3303.6,3.02696]
[1737897447303,3.0,3304.2,3303.4,3.02717]
[1737897447476,3.02655,3304.1,3303.5,3.02704]
[1737897449018,3.0,3304.2,3303.6,3.02695]
[1737897449201,3.0,3304.2,3303.5,3.63744466]
[1737897449514,0.8167,3304.3,3303.8,3.02674]
[1737897451716,6.02651,3304.2,3303.6,3.02696]
[1737897451914,6.02651,3304.2,3303.5,3.02705]
[1737897452324,6.02651,3304.2,3303.6,3.02699]
[1737897453321,0.14724942,3304.1,3303.6,3.02699]
[1737897453982,0.14724942,3304.1,3303.7,3.02686]
[1737897454314,6.02647,3304.2,3303.5,6.05406]
[1737897454514,0.14724942,3304.0,3303.5,3.02701]
[1737897454823,0.14724942,3303.9,3303.5,3.02701]
[1737897455224,3.02665,3304.0,3303.5,3.02701]
[1737897455374,0.14724942,3303.9,3303.5,3.02701]
[1737897456346,0.14724942,3303.9,3303.4,0.61282618]
[1737897456347,0.7581,3303.7,3303.4,0.61282618]
[1737897457020,0.14724942,3303.6,3303.4,0.61282618]
[1737897459352,3.17425942,3303.6,3303.0,3.22546]
[1737897459857,3.17425942,3303.6,3303.0,3.02746]
[1737897462248,0.14724942,3303.6,3303.1,3.02737]
[1737897462554,0.8234,3303.4,3302.8,3.02767]
[1737897463350,3.85063,3303.4,3302.8,3.02767]
[1737897463851,0.14711975,3303.3,3302.8,3.02767]
[1737897464851,0.8234,3303.1,3302.6,3.64295767]
[1737897465053,0.8234,3303.1,3302.6,3.0279]
[1737897465352,0.14707372,3303.0,3302.6,3.0279]
[1737897466719,0.14707372,3303.0,3302.4,3.02809]
[1737897468155,0.7704,3302.9,3302.4,3.02809]
[1737897468566,0.1469273,3302.8,3302.3,3.02813]
[1737897469134,3.1746573,3302.8,3302.1,0.198]
[1737897469332,3.1746573,3302.8,3302.2,3.02825]
[1737897469876,0.1469273,3302.8,3302.4,0.60368995]
[1737897470033,0.1469273,3302.8,3302.7,3.02782]
[1737897470431,5.31,3303.0,3302.7,3.02782]
[1737897470672,0.14686453,3302.9,3302.7,3.02782]
[1737897470838,0.14686453,3302.9,3302.8,3.02773]
[1737897473294,0.7704,3303.3,3302.9,3.02763]
[1737897475298,1.45015,3303.3,3302.9,2.77763]
[1737897475897,1.45015,3303.3,3302.7,3.02782]
[1737897476575,4.47745,3303.3,3302.7,3.02782]
[1737897477595,3.0275,3303.1,3302.5,3.02799]
[1737897478594,3.02756,3303.0,3302.3,6.25428]
[1737897478749,3.714476,3303.0,3302.3,6.25428]
[1737897479387,0.686916,3303.0,3302.5,3.028]
[1737897480754,0.8141,3303.2,3302.6,3.02784]
[1737897480964,0.8141,3303.2,3302.7,3.02774]
[1737897483495,0.14680594,3303.1,3302.7,3.02774]
[1737897485000,3.17426594,3303.1,3302.5,3.02794]
[1737897486081,0.14680594,3303.1,3303.0,3.81055]
[1737897486424,5.31,3304.6,3303.0,0.783]
[1737897486723,3.92254684,3304.5,3303.9,3.02672]
[1737897487021,3.94872684,3304.5,3303.5,0.198]
[1737897487245,3.0,3304.3,3303.6,3.02694]
[1737897487611,0.13747854,3304.2,3303.6,3.02694]
[1737897488027,0.13747854,3304.2,3303.7,0.10859236]
[1737897488028,0.75385639,3304.2,3303.7,0.10859236]
[1737897488391,0.75385639,3304.2,3303.8,3.02679]
[1737897488582,0.13747854,3304.2,3303.8,3.02679]
[1737897489015,3.0,3304.4,3303.9,0.10859236]
[1737897489511,0.13754594,3304.3,3303.9,0.10859236]
[1737897490185,0.13754594,3304.3,3304.0,0.10859236]
[1737897491535,0.13754594,3304.3,3303.7,3.02689]
[1737897491826,0.13754594,3304.3,3303.5,3.22501]
[1737897492039,0.13754594,3304.3,3303.8,3.02681]
[1737897492188,0.83245053,3304.3,3303.8,3.02681]
[1737897492529,0.83245053,3304.3,3303.9,0.10848655]
[1737897493954,0.83245053,3304.3,3303.7,0.10848655]
[1737897494863,0.83245053,3304.3,3303.8,0.10848655]
[1737897495565,3.85885053,3304.3,3303.8,0.10848655]
[1737897495861,0.68588505,3304.2,3303.8,0.10848655]
[1737897496161,0.13789557,3304.1,3303.7,0.10848655]
[1737897496536,0.7853,3304.5,3304.0,3.02663]
[1737897496720,3.8121,3304.9,3304.2,3.02639]
[1737897496919,0.13789137,3304.8,3304.2,3.02639]
[1737897497818,0.13789137,3304.8,3304.3,3.02628]
[1737897499065,0.13789137,3304.8,3304.0,3.8176]
[1737897499276,0.13789137,3304.8,3304.1,3.02647]
[1737897499573,0.13789137,3304.8,3304.2,3.02642]
[1737897500870,0.13789137,3304.8,3304.1,3.02654]
[1737897501168,0.13789137,3304.8,3304.5,3.02609]
[1737897501521,0.7858,3305.2,3304.5,3.02609]
[1737897501722,0.13837563,3305.1,3304.8,3.02589]
[1737897502859,0.8121,3305.4,3304.8,3.02589]
[1737897503161,0.8121,3305.4,3304.8,3.02583]
[1737897503467,0.1386745,3305.3,3304.9,3.0258]
[1737897504959,0.1386745,3305.3,3304.7,3.02592]
[1737897505159,0.90439965,3305.3,3304.6,3.02604]
[1737897505619,3.92983965,3305.3,3304.6,3.02604]
[1737897505816,3.02555,3305.2,3304.5,3.22416]
[1737897506164,0.13881761,3305.1,3304.5,3.22416]
[1737897506826,0.13881761,3305.1,3304.5,3.02616]
[1737897510652,0.8121,3305.0,3304.5,3.02616]
[1737897510852,0.8121,3305.0,3304.5,6.05227]
[1737897511226,0.13881761,3304.9,3304.5,3.02611]
[1737897511961,0.13881761,3304.9,3304.5,3.02617]
[1737897512876,0.13881761,3304.9,3304.5,6.05228]
[1737897513671,0.13881761,3304.9,3304.5,3.02611]
[1737897514068,0.13881761,3304.9,3304.6,0.10825497]
[1737897516474,0.13881761,3304.9,3304.7,0.10825497]
[1737897518171,0.13881761,3304.9,3304.8,0.10825497]
[1737897519744,0.8121,3305.0,3304.8,0.10825497]
[1737897519939,0.8121,3305.0,3304.3,0.10825497]
[1737897519940,0.13883444,3304.9,3304.3,0.10825497]
[1737897520143,0.8121,3305.0,3304.3,0.10825497]
[1737897520457,0.13883444,3304.9,3304.3,0.10825497]
[1737897520672,3.16464444,3304.9,3304.3,0.10825497]
[1737897520878,0.13883444,3304.9,3304.3,3.13455497]
[1737897521185,0.13883444,3304.9,3304.4,3.13450497]
[1737897522459,0.13883444,3304.9,3304.5,3.13441497]
[1737897522865,0.8121,3305.0,3304.5,3.13441497]
[1737897523063,0.13883444,3304.8,3304.5,3.13441497]
[1737897523610,0.13883444,3304.8,3304.5,3.02616]
[1737897523746,0.8121,3305.0,3304.5,3.02616]
[1737897523947,1.195867,3305.0,3304.5,3.02616]
[1737897524920,0.8121,3305.0,3304.8,3.02589]
[1737897525053,3.0,3305.2,3304.8,3.02589]
[1737897528189,0.12934303,3305.1,3304.8,3.02589]
[1737897529370,0.8173,3305.3,3304.8,3.02589]
[1737897529573,0.1293767,3305.2,3304.8,3.02589]
[1737897529775,0.8173,3305.3,3304.8,3.02589]
[1737897530083,0.1293767,3305.2,3304.8,3.02589]
[1737897530396,1.501557,3305.3,3304.8,3.02589]
[1737897530595,0.1293767,3305.1,3304.8,3.02589]
[1737897530799,0.8173,3305.3,3304.8,3.02589]
[1737897530967,0.1293767,3305.0,3304.8,3.02589]
[1737897531199,0.8173,3305.3,3304.8,3.02589]
[1737897531484,0.1293767,3304.9,3304.8,3.02589]
[1737897531997,0.8173,3305.3,3304.8,3.02589]
[1737897532195,0.1293767,3304.9,3304.8,3.02589]
[1737897532502,0.8173,3305.5,3305.0,3.02565]
[1737897532888,0.8173,3305.5,3305.1,3.77762]
[1737897533496,0.8173,3305.5,3304.9,3.02575]
[1737897533687,3.0,3305.4,3304.8,6.05172]
[1737897535077,3.02548,3305.3,3304.6,3.02602]
[1737897535270,0.8173,3305.1,3304.6,3.02602]
[1737897537513,0.8173,3305.1,3304.5,0.752]
[1737897537711,3.84292,3305.1,3304.5,3.77817]
[1737897541874,3.02573,3305.0,3304.5,3.77817]
[1737897542102,0.686865,3304.9,3304.5,3.02617]
[1737897542492,0.686865,3304.9,3304.4,3.02626]
[1737897543299,0.12943983,3304.8,3304.4,3.02626]
[1737897544187,0.12943983,3304.8,3304.3,3.81422]
[1737897545034,0.802,3304.7,3304.1,3.22447]
[1737897545199,0.39573998,3304.6,3304.1,3.02647]
[1737897545605,0.12920413,3304.5,3304.1,3.02647]
[1737897546235,3.15537413,3304.5,3304.0,3.0266]
[1737897546542,3.82833,3304.4,3303.9,0.198]
[1737897546831,3.82833,3304.4,3303.6,4.6065957]
[1737897547137,0.12898524,3304.3,3303.6,4.6065957]
[1737897547321,0.12898524,3304.3,3303.8,3.0268]
[1737897548536,3.15535524,3304.3,3303.8,3.0268]
[1737897548741,3.15535524,3304.3,3303.9,0.10870242]
[1737897548904,0.8082,3304.2,3303.9,0.10870242]
[1737897549101,3.42289552,3304.1,3303.9,0.10870242]
[1737897549307,3.55183024,3304.1,3303.9,0.10870242]
[1737897549894,3.55183024,3304.1,3304.0,0.10870242]
[1737897553875,4.36003024,3304.1,3304.0,0.10870242]
[1737897555426,0.52529024,3304.1,3304.0,0.10870242]
[1737897555756,0.12893472,3304.1,3304.0,3.13533242]
[1737897555964,0.12893472,3304.1,3304.0,3.89923242]
[1737897556118,5.31,3304.6,3304.5,3.02617]
[1737897556553,5.4342606,3304.6,3304.5,3.02617]
[1737897556721,5.31,3304.6,3304.5,3.02617]
[1737897556928,5.4342606,3304.6,3304.5,3.02617]
[1737897557132,5.4342606,3304.6,3304.5,3.13487242]
[1737897559017,0.1242606,3304.6,3304.5,3.13487242]
[1737897559231,6.83388,3305.1,3304.5,3.13487242]
[1737897559457,0.12473362,3304.6,3304.5,3.13487242]
[1737897559662,0.985941,3305.0,3304.5,3.13487242]
[1737897559869,0.1247294,3304.6,3304.5,3.13487242]
[1737897560018,0.985941,3305.0,3304.5,3.13487242]
[1737897560359,0.1247294,3304.6,3304.5,3.13487242]
[1737897560555,6.83385,3305.1,3304.6,0.10870242]
[1737897560760,8.048235,3305.1,3304.6,0.10870242]
[1737897560965,3.02576,3305.0,3304.6,0.10870242]
[1737897561455,3.02576,3305.0,3304.7,0.10870242]
[1737897563032,3.02581,3304.9,3304.8,0.10870242]
[1737897563763,2.022585,3305.1,3304.8,0.10870242]
[1737897564056,0.5022585,3305.0,3304.8,0.10870242]
[1737897565266,0.5022585,3305.0,3304.9,0.10870242]
[1737897565636,3.02518,3305.6,3304.9,0.10870242]
[1737897565823,0.7518,3305.5,3305.0,3.0257]
[1737897568853,0.677699,3305.4,3305.1,0.10870242]
[1737897569028,0.677699,3305.4,3305.2,0.10870242]
[1737897570167,0.677699,3305.4,3304.9,3.02579]
[1737897570366,3.7518,3305.5,3304.9,3.02579]
[1737897571264,3.7518,3305.5,3305.0,0.10823786]
[1737897571474,6.77708,3305.5,3305.0,0.10823786]
[1737897572446,6.77708,3305.5,3305.1,0.10823786]
[1737897573232,0.12500807,3305.4,3305.1,0.10823786]
[1737897573432,1.11773588,3305.4,3305.1,0.10823786]
[1737897573953,1.11773588,3305.4,3305.2,0.10823786]
[1737897575176,4.14308588,3305.4,3305.2,0.10823786]
[1737897575330,4.14308588,3305.4,3304.9,0.10823786]
[1737897576732,4.14308588,3305.4,3305.0,0.10823786]
[1737897576931,0.78948859,3305.3,3305.0,0.10823786]
[1737897577236,0.12500383,3305.2,3305.0,0.10823786]
[1737897577728,3.81832,3305.1,3305.0,0.10823786]
[1737897577934,3.94332383,3305.1,3305.0,0.10823786]
[1737897578375,6.94332383,3305.1,3305.0,0.10823786]
[1737897578557,8.01914907,3305.1,3305.0,0.10823786]
[1737897578934,8.01914907,3305.1,3305.0,0.05823786]
[1737897580035,3.02577,3305.0,3304.3,3.84194]
[1737897580284,0.1250165,3304.9,3304.3,3.84194]
[1737897581070,0.1250165,3304.9,3304.5,3.02617]
[1737897581446,3.7927,3305.1,3304.5,3.02617]
[1737897581652,0.12499117,3304.8,3304.5,3.02617]
[1737897581837,3.7927,3305.1,3304.5,3.02617]
[1737897582036,0.12499117,3305.0,3304.5,3.02617]
[1737897584892,0.12499117,3305.0,3304.4,3.02624]
[1737897586549,0.12499117,3305.0,3304.5,3.02615]
[1737897586748,0.12499117,3305.0,3304.4,3.02624]
[1737897586952,0.12499117,3305.0,3304.4,6.05245]
[1737897587194,0.12499117,3305.0,3304.4,3.02621]
[1737897587899,3.15072117,3305.0,3304.4,3.02621]
[1737897588098,4.14762929,3305.0,3304.4,3.02621]
[1737897589797,3.02597,3304.8,3304.2,3.2244]
[1737897589964,0.92192072,3304.7,3304.2,3.2244]
[1737897591186,3.94792072,3304.7,3304.0,3.7821]
[1737897591504,3.02609,3304.6,3304.0,4.3969688]
[1737897591659,3.72348807,3304.6,3304.0,4.3969688]
[1737897591858,0.12482652,3304.5,3304.1,0.1084441]
[1737897592657,3.02627,3304.4,3304.1,0.1084441]
[1737897592961,0.12476318,3304.3,3304.2,0.1084441]
[1737897594719,0.12476318,3304.3,3304.2,0.1019091]
[1737897594923,0.4398665,3304.3,3304.2,0.1019091]
[1737897596014,0.12476318,3304.3,3304.2,3.8838591]
[1737897596218,3.7969,3304.7,3304.2,3.8838591]
[1737897596381,0.12452671,3304.6,3304.2,3.8838591]
[1737897596913,0.12452671,3304.6,3304.2,0.1019091]
[1737897597127,3.0,3304.5,3304.0,3.02661]
[1737897597305,0.31245267,3304.4,3304.0,3.02661]
[1737897597509,0.43707651,3304.4,3304.0,3.02661]
[1737897597721,0.43707651,3304.4,3303.8,6.05354]
[1737897598615,0.43707651,3304.4,3303.8,3.02675]
[1737897599824,0.43707651,3304.4,3303.9,3.02672]
[1737897600787,0.43707651,3304.4,3303.7,0.7555]
[1737897600989,3.46342651,3304.4,3303.7,3.78235]
[1737897601189,3.46342651,3304.4,3303.8,3.0268]
[1737897601886,0.43707651,3304.4,3303.9,3.02671]
[1737897602105,0.12462384,3304.4,3303.9,3.02671]
[1737897602294,3.02637,3304.3,3303.7,3.7824]
[1737897602540,0.7538,3304.2,3303.7,3.7824]
[1737897602829,0.87831826,3304.2,3303.7,3.7824]
[1737897604598,0.87831826,3304.2,3303.9,3.0267]
[1737897604925,0.12451826,3304.2,3303.9,3.0267]
[1737897605284,0.7538,3304.4,3303.9,3.0267]
[1737897605483,0.12450136,3304.1,3303.9,3.0267]
[1737897605798,0.12450136,3304.0,3303.8,3.02681]
[1737897605993,3.78012,3304.4,3303.8,3.02681]
[1737897606199,0.12450136,3304.3,3303.9,3.02672]
[1737897607045,0.12450136,3304.3,3304.0,0.10827743]
[1737897607330,0.12450136,3304.3,3304.2,3.02645]
[1737897607730,3.0,3304.6,3304.2,3.02645]
[1737897607921,0.1244,3304.3,3304.2,3.13472743]
[1737897608123,3.0,3304.6,3304.2,3.13472743]
[1737897608732,0.1244,3304.5,3304.2,3.13472743]
[1737897609138,0.1244,3304.5,3304.2,0.10827743]
[1737897609139,0.7538,3304.4,3304.2,0.10827743]
[1737897609435,3.78008,3304.4,3304.3,0.10827743]
[1737897610400,3.78008,3304.4,3303.7,3.0269]
[1737897610826,3.02645,3304.2,3303.7,3.0269]
[1737897611543,3.78008,3304.4,3303.8,0.10828703]
[1737897611700,0.41679,3304.3,3303.8,0.10828703]
[1737897611899,3.44319,3304.3,3303.8,0.10828703]
[1737897612439,3.44319,3304.3,3303.9,0.10828703]
[1737897612739,0.41679,3304.3,3303.9,0.10828703]
[1737897612939,3.78008,3304.4,3303.9,0.10828703]
[1737897613629,3.78008,3304.4,3304.0,0.10828703]
[1737897614998,3.78008,3304.4,3303.8,3.02675]
[1737897615624,3.78008,3304.4,3303.7,3.0269]
[1737897616703,3.78008,3304.4,3303.7,3.02683]
[1737897616904,4.460699,3304.4,3303.7,3.02683]
[1737897617103,4.460699,3304.4,3303.7,3.02682]
[1737897617401,4.460699,3304.4,3303.8,3.0268]
[1737897618245,0.12438311,3304.3,3303.8,3.0268]
[1737897620650,0.12438311,3304.3,3303.9,0.10845893]